{"text_format":"3","workbook":"xlsx","n_sheets":2,"sheets":["Tilbudsformular","Kostprisopdeling"],"not_rendered":{"charts":1,"images":2,"defined_names":4},"read":"whole","date_system":"1900"}

{"sheet":"Tilbudsformular","index":0,"n_rows":48,"n_cols":7,"rows_kept":48,"merged":[[15,1,25,5],[29,1,31,5],[35,1,37,5],[43,1,45,5]]}
[]
[null,"TILBUDSFORMULAR TIL KONSTRUKTION",{"$nulls":4}," "]
[]
[]
[null,"EJEROPLYSNINGER",null,null,"LEVERANDØROPLYSNINGER"]
[null,"Navn","Michael Lange",null,"Firma","Fabrikam, Inc."]
[null,"Adresse","Hovedgaden 123",null,"Navn","Jens Johannsen"]
[null,"Postnr., by","1234 Solby",null,"Adresse","Sydgaden 321"]
[null,"Telefon",8885550111,null,"Postnr., by","1234 Solby"]
[null,"Mail","michael@proseware.com",null,"Telefon",8885550123]
[{"$nulls":4},"Mail","Jens@fabrikam.cam"]
[null,"Projektnavn","Trapper til forretning",null,"Afslutningsdato","2013-07-14"]
[]
[null,"ARBEJDSOMRÅDE"]
[]
[null,"Projektets arbejdsområde beskrives her. Skriv alle de specifikationer, du ønsker. Dette er et eksempelprojekt med opførelse af en stor trappe. Vi bruger kun 2 x 4 og 2 x 8 tømmer samt bjælkebeslag til at bygge rammen. Trapperne skæres ud af 2 x 4 materiale. Der bruges 2\"-skruer, og sømmene er 10d. Konstruktionsvægten skal kunne bære mindst 250 kg pr. trin. Trinnene er på højde med huset. Der monteres et stigbræt på huset. Leverandøren sørger for rengøring."]
{"$rows_empty":11}
[null,"IKKE INKLUDERET"]
[]
[null,"Der monteres ingen gelænder. Jorden skal forberedes af ejeren. Trappen males af ejeren."]
[]
[]
[]
[null,"FIRMAUDSPIL"]
[]
[null,"Vi, Fabrikam, Inc., tilbyder at udføre ovennævnte arbejde med afslutningsdato den 14. juli 2011 til en pris på DKK 4076,50."]
[]
[]
[]
[null,"Afgivet af (firmarepræsentant)",{"$nulls":3},"Dato"]
[]
[null,"EJERACCEPT"]
[]
[null,"Jeg, Michael Lange, accepterer ovennævnte arbejde, som afsluttes den 14. juli 2011 til en pris på DKK 4076,50."]
[]
[]
[]
[null,"Afgivet af  (grundejer eller godkendt repræsentant)",{"$nulls":3},"Dato"]

{"sheet":"Kostprisopdeling","index":1,"n_rows":47,"n_cols":6,"rows_kept":47,"merged":[[42,3,42,4],[43,3,43,4],[44,3,44,4],[45,3,45,4],[46,3,46,4],[47,3,47,4],[48,3,48,4],[49,3,49,4]]}
[]
[null,"OVERSIGT OVER TILBUDSOMKOSTNING",{"$nulls":3}," "]
[]
[]
[null,"LISTE OVER MATERIALER OG OMKOSTNINGER"]
[]
[null,"Mængde","Beskrivelse","Omkostning","I alt"," "]
[null,5,"2 x 8 x 10 tømmer",{"v":6.75,"d":"kr. 6.75"},{"$f":"Tilbudsvarer[Omkostning]*Tilbudsvarer[Mængde]","v":{"v":33.75,"d":"kr. 33.75"}},{"$f":"_xlfn.RANK.EQ(Tilbudsvarer[[#This Row],[I alt]],Tilbudsvarer[I alt])","v":4}]
[null,20,"2 x 4 x 10 tømmer",{"v":4.97,"d":"kr. 4.97"},{"$f":"Tilbudsvarer[Omkostning]*Tilbudsvarer[Mængde]","v":{"v":99.39999999999999,"d":"kr. 99.40"}},{"$f":"_xlfn.RANK.EQ(Tilbudsvarer[[#This Row],[I alt]],Tilbudsvarer[I alt])","v":2}]
[null,30,"Bjælkebeslag",{"v":2.49,"d":"kr. 2.49"},{"$f":"Tilbudsvarer[Omkostning]*Tilbudsvarer[Mængde]","v":{"v":74.7,"d":"kr. 74.70"}},{"$f":"_xlfn.RANK.EQ(Tilbudsvarer[[#This Row],[I alt]],Tilbudsvarer[I alt])","v":3}]
[null,2,"Boks med skruer, 2\"",{"v":6.67,"d":"kr. 6.67"},{"$f":"Tilbudsvarer[Omkostning]*Tilbudsvarer[Mængde]","v":{"v":13.34,"d":"kr. 13.34"}},{"$f":"_xlfn.RANK.EQ(Tilbudsvarer[[#This Row],[I alt]],Tilbudsvarer[I alt])","v":6}]
[null,2,"Boks med søm, 10d",{"v":3.25,"d":"kr. 3.25"},{"$f":"Tilbudsvarer[Omkostning]*Tilbudsvarer[Mængde]","v":{"v":6.5,"d":"kr. 6.50"}},{"$f":"_xlfn.RANK.EQ(Tilbudsvarer[[#This Row],[I alt]],Tilbudsvarer[I alt])","v":7}]
[null,2,"Læderhandsker",{"v":7.75,"d":"kr. 7.75"},{"$f":"Tilbudsvarer[Omkostning]*Tilbudsvarer[Mængde]","v":{"v":15.5,"d":"kr. 15.50"}},{"$f":"_xlfn.RANK.EQ(Tilbudsvarer[[#This Row],[I alt]],Tilbudsvarer[I alt])","v":5}]
[null,2,"Arbejderomkostninger",{"v":100,"d":"kr. 100.00"},{"$f":"Tilbudsvarer[Omkostning]*Tilbudsvarer[Mængde]","v":{"v":200,"d":"kr. 200.00"}},{"$f":"_xlfn.RANK.EQ(Tilbudsvarer[[#This Row],[I alt]],Tilbudsvarer[I alt])","v":1}]
[{"$nulls":4},{"$f":"Tilbudsvarer[Omkostning]*Tilbudsvarer[Mængde]","v":0},{"$f":"_xlfn.RANK.EQ(Tilbudsvarer[[#This Row],[I alt]],Tilbudsvarer[I alt])","v":8}]
[{"$nulls":4},{"$f":"Tilbudsvarer[Omkostning]*Tilbudsvarer[Mængde]","v":0},{"$f":"_xlfn.RANK.EQ(Tilbudsvarer[[#This Row],[I alt]],Tilbudsvarer[I alt])","v":8}]
[{"$nulls":4},{"$f":"Tilbudsvarer[Omkostning]*Tilbudsvarer[Mængde]","v":0},{"$f":"_xlfn.RANK.EQ(Tilbudsvarer[[#This Row],[I alt]],Tilbudsvarer[I alt])","v":8}]
[{"$nulls":4},{"$f":"Tilbudsvarer[Omkostning]*Tilbudsvarer[Mængde]","v":0},{"$f":"_xlfn.RANK.EQ(Tilbudsvarer[[#This Row],[I alt]],Tilbudsvarer[I alt])","v":8}]
[{"$nulls":4},{"$f":"Tilbudsvarer[Omkostning]*Tilbudsvarer[Mængde]","v":0},{"$f":"_xlfn.RANK.EQ(Tilbudsvarer[[#This Row],[I alt]],Tilbudsvarer[I alt])","v":8}]
[{"$nulls":4},{"$f":"Tilbudsvarer[Omkostning]*Tilbudsvarer[Mængde]","v":0},{"$f":"_xlfn.RANK.EQ(Tilbudsvarer[[#This Row],[I alt]],Tilbudsvarer[I alt])","v":8}]
[{"$nulls":4},{"$f":"Tilbudsvarer[Omkostning]*Tilbudsvarer[Mængde]","v":0},{"$f":"_xlfn.RANK.EQ(Tilbudsvarer[[#This Row],[I alt]],Tilbudsvarer[I alt])","v":8}]
[{"$nulls":4},{"$f":"Tilbudsvarer[Omkostning]*Tilbudsvarer[Mængde]","v":0},{"$f":"_xlfn.RANK.EQ(Tilbudsvarer[[#This Row],[I alt]],Tilbudsvarer[I alt])","v":8}]
[{"$nulls":4},{"$f":"Tilbudsvarer[Omkostning]*Tilbudsvarer[Mængde]","v":0},{"$f":"_xlfn.RANK.EQ(Tilbudsvarer[[#This Row],[I alt]],Tilbudsvarer[I alt])","v":8}]
[{"$nulls":4},{"$f":"Tilbudsvarer[Omkostning]*Tilbudsvarer[Mængde]","v":0},{"$f":"_xlfn.RANK.EQ(Tilbudsvarer[[#This Row],[I alt]],Tilbudsvarer[I alt])","v":8}]
[{"$nulls":4},{"$f":"Tilbudsvarer[Omkostning]*Tilbudsvarer[Mængde]","v":0},{"$f":"_xlfn.RANK.EQ(Tilbudsvarer[[#This Row],[I alt]],Tilbudsvarer[I alt])","v":8}]
[{"$nulls":4},{"$f":"Tilbudsvarer[Omkostning]*Tilbudsvarer[Mængde]","v":0},{"$f":"_xlfn.RANK.EQ(Tilbudsvarer[[#This Row],[I alt]],Tilbudsvarer[I alt])","v":8}]
[{"$nulls":4},{"$f":"Tilbudsvarer[Omkostning]*Tilbudsvarer[Mængde]","v":0},{"$f":"_xlfn.RANK.EQ(Tilbudsvarer[[#This Row],[I alt]],Tilbudsvarer[I alt])","v":8}]
[{"$nulls":4},{"$f":"Tilbudsvarer[Omkostning]*Tilbudsvarer[Mængde]","v":0},{"$f":"_xlfn.RANK.EQ(Tilbudsvarer[[#This Row],[I alt]],Tilbudsvarer[I alt])","v":8}]
[{"$nulls":4},{"$f":"Tilbudsvarer[Omkostning]*Tilbudsvarer[Mængde]","v":0},{"$f":"_xlfn.RANK.EQ(Tilbudsvarer[[#This Row],[I alt]],Tilbudsvarer[I alt])","v":8}]
[{"$nulls":4},{"$f":"Tilbudsvarer[Omkostning]*Tilbudsvarer[Mængde]","v":0},{"$f":"_xlfn.RANK.EQ(Tilbudsvarer[[#This Row],[I alt]],Tilbudsvarer[I alt])","v":8}]
[1,{"$nulls":3},{"$f":"Tilbudsvarer[Omkostning]*Tilbudsvarer[Mængde]","v":0},{"$f":"_xlfn.RANK.EQ(Tilbudsvarer[[#This Row],[I alt]],Tilbudsvarer[I alt])","v":8}]
[2,null,null,"Subtotal",{"$f":"SUBTOTAL(109,Tilbudsvarer[I alt])","v":{"v":443.18999999999994,"d":"kr. 443.19"}}]
[3,null,null,"Momssats",{"v":0.075,"d":"7.50%"}]
[4,null,null,"Moms",{"$f":"Momssats*Tilbudsvarer[[#Totals],[I alt]]","v":{"v":33.23924999999999,"d":"kr. 33.24"}}]
[5,null,null,"I alt",{"$f":"Moms+Tilbudsvarer[[#Totals],[I alt]]","v":{"v":476.4292499999999,"d":"kr. 476.43"}}]
[]
[]
[]
[null,"SPECIFIKATION AF MATERIALER OG OMKOSTNINGER"]
[]
[]
[null,null,"I ALT","NOTER"]
[null,{"$f":"INDEX(Tilbudsvarer[],MATCH(A31,Tilbudsvarer[[ ]],0),2)","v":"Arbejderomkostninger"},{"$f":"INDEX(Tilbudsvarer[],MATCH(A31,Tilbudsvarer[[ ]],0),4)","v":{"v":200,"d":"$200.00"}}]
[null,{"$f":"INDEX(Tilbudsvarer[],MATCH(A32,Tilbudsvarer[[ ]],0),2)","v":"2 x 4 x 10 tømmer"},{"$f":"INDEX(Tilbudsvarer[],MATCH(A32,Tilbudsvarer[[ ]],0),4)","v":{"v":99.39999999999999,"d":"$99.40"}}]
[null,{"$f":"INDEX(Tilbudsvarer[],MATCH(A33,Tilbudsvarer[[ ]],0),2)","v":"Bjælkebeslag"},{"$f":"INDEX(Tilbudsvarer[],MATCH(A33,Tilbudsvarer[[ ]],0),4)","v":{"v":74.7,"d":"$74.70"}}]
[null,{"$f":"INDEX(Tilbudsvarer[],MATCH(A34,Tilbudsvarer[[ ]],0),2)","v":"2 x 8 x 10 tømmer"},{"$f":"INDEX(Tilbudsvarer[],MATCH(A34,Tilbudsvarer[[ ]],0),4)","v":{"v":33.75,"d":"$33.75"}}]
[null,{"$f":"INDEX(Tilbudsvarer[],MATCH(A35,Tilbudsvarer[[ ]],0),2)","v":"Læderhandsker"},{"$f":"INDEX(Tilbudsvarer[],MATCH(A35,Tilbudsvarer[[ ]],0),4)","v":{"v":15.5,"d":"$15.50"}}]